fUSD/lending_fUSD_20250514
["ID","MTS","AMOUNT","RATE_DAILY","PERIOD"]
[361077128,1747234232496,-500.0,0.00010869,2]
[361077129,1747234232508,-2732.39455467,0.00010869,2]
[361077130,1747234232517,-1338.78812656,0.00010869,2]
[361077133,1747234237984,-27916.96187344,0.00010869,2]
[361077134,1747234237994,-896.42,0.00010869,2]
[361077135,1747234238004,-1149.73,0.00010869,2]
[361077136,1747234238014,-3542.58,0.00010869,2]
[361077137,1747234238024,-1223.17,0.00010869,2]
[361077138,1747234238034,-150.99,0.00010869,2]
[361077139,1747234238045,-150.99,0.00010869,2]
[361077140,1747234238055,-180.27,0.00010869,2]
[361077141,1747234238065,-5511.2887,0.00010869,2]
[361077142,1747234238075,-30021.5831,0.00010869,2]
[361077143,1747234238086,-1000.0,0.00010869,2]
[361077144,1747234238095,-157.19818193,0.000109,2]
[361077145,1747234238105,-207.4,0.00010901,2]
[361077146,1747234238115,-161.14,0.00010956,2]
[361077147,1747234238124,-161.14,0.00010956,2]
[361077148,1747234238135,-161.14,0.00010956,2]
[361077149,1747234238146,-161.14,0.00010957,2]
[361077150,1747234238156,-161.14,0.00010957,2]
[361077151,1747234238165,-161.14,0.00010957,2]
[361077152,1747234238175,-161.14,0.00010957,2]
[361077153,1747234238185,-161.14,0.00010957,2]
[361077154,1747234238195,-151.0,0.00010961,2]
[361077155,1747234238205,-151.0,0.00010961,2]
[361077156,1747234238215,-1439.04716418,0.00010961,2]
[361077157,1747234238225,-668.65185757,0.00010961,2]
[361077158,1747234238235,-156.587,0.00010961,2]
[361077159,1747234238246,-653.64,0.00010965,2]
[361077160,1747234238257,-500.0,0.00010966,2]
[361077161,1747234238267,-400.0,0.00010966,2]
[361077162,1747234238277,-400.0,0.00010966,2]
[361077163,1747234238287,-320.48758154,0.00010966,2]
[361077164,1747234238296,-400.0,0.00010966,2]
[361077165,1747234238306,-511.5612539,0.00010966,2]
[361077166,1747234238316,-400.0,0.00010966,2]
[361077167,1747234238326,-400.0,0.00010966,2]
[361077168,1747234238335,-400.0,0.00010966,2]
[361077169,1747234238345,-400.0,0.00010966,2]
[361077170,1747234238355,-400.0,0.00010966,2]
[361077172,1747234238365,-400.0,0.00010966,2]
[361077173,1747234238375,-224.53787208,0.00010966,2]
[361077175,1747234238385,-153.01221716,0.00010966,2]
[361077178,1747234238397,-400.0,0.00010966,2]
[361077181,1747234238406,-400.0,0.00010966,2]
[361077182,1747234238416,-400.0,0.00010966,2]
[361077183,1747234238426,-400.0,0.00010966,2]
[361077184,1747234238438,-400.0,0.00010966,2]
[361077185,1747234238451,-400.0,0.00010966,2]
[361077186,1747234238466,-207.289549,0.00010966,2]
[361077187,1747234238478,-17397.27994272,0.00010966,2]
[361077188,1747234238493,-7068.22306128,0.00010966,2]
[361077189,1747234238503,-400.0,0.00010966,2]
[361077190,1747234238512,-400.0,0.00010966,2]
[361077191,1747234238523,-400.0,0.00010966,2]
[361077192,1747234238533,-400.0,0.00010966,2]
[361077193,1747234238543,-481.507046,0.00010966,2]
[361077194,1747234238553,-166.55561851,0.00010966,2]
[361077195,1747234238562,-292.69167544,0.00010966,2]
[361077196,1747234238583,-107.30832456,0.00010966,2]
[361077197,1747234238592,-312.06965893,0.00010966,2]
[361077198,1747234238602,-539.3,0.00010966,2]
[361077199,1747234238612,-250.0,0.00010966,2]
[361077200,1747234238622,-268.31434953,0.00010966,2]
[361077201,1747234238633,-400.0,0.00010966,2]
[361077202,1747234238642,-400.0,0.00010966,2]
[361077203,1747234238654,-400.0,0.00010966,2]
[361077204,1747234238664,-400.0,0.00010966,2]
[361077205,1747234238675,-400.0,0.00010966,2]
[361077206,1747234238685,-404.22,0.00010966,2]
[361077207,1747234238695,-400.0,0.00010966,2]
[361077208,1747234238704,-400.0,0.00010966,2]
[361077209,1747234238714,-400.0,0.00010966,2]
[361077210,1747234238724,-722.34,0.00010966,2]
[361077211,1747234238733,-400.0,0.00010966,2]
[361077212,1747234238743,-400.0,0.00010966,2]
[361077213,1747234238753,-400.0,0.00010966,2]
[361077214,1747234238763,-2815.78,0.00010966,2]
[361077215,1747234238773,-400.0,0.00010966,2]
[361077216,1747234238783,-110.14280273,0.00010966,2]
[361077217,1747234238803,-289.85719727,0.00010966,2]
[361077218,1747234238813,-225.06280267,0.00010966,2]
[361077219,1747234238831,-174.93719733,0.00010966,2]
[361077220,1747234238840,-2613.51,0.00010966,2]
[361077221,1747234238848,-400.0,0.00010966,2]
[361077222,1747234238858,-1082.58,0.00010966,2]
[361077223,1747234238867,-400.0,0.00010966,2]
[361077224,1747234238876,-400.0,0.00010966,2]
[361077225,1747234238884,-77.8067198,0.00010966,2]
[361077226,1747234238908,-1000.7032802,0.00010966,2]
[361077227,1747234238918,-400.0,0.00010966,2]
[361077228,1747234238928,-415.11843666,0.00010966,2]
[361077229,1747234238937,-94.41316655,0.00010966,2]
[361077230,1747234238949,-305.58683345,0.00010966,2]
[361077231,1747234238959,-156.56044847,0.00010966,2]
[361077232,1747234238968,-400.0,0.00010966,2]
[361077233,1747234238978,-400.0,0.00010966,2]
[361077234,1747234238987,-400.0,0.00010966,2]
[361077235,1747234238997,-400.0,0.00010966,2]
[361077236,1747234239008,-1.45271808,0.00010966,2]
[361077237,1747234239019,-601.69728192,0.00010966,2]
[361077238,1747234239029,-400.0,0.00010966,2]
[361077239,1747234239038,-400.0,0.00010966,2]
[361077240,1747234239048,-487.65,0.00010966,2]
[361077241,1747234239058,-400.0,0.00010966,2]
[361077242,1747234239068,-400.0,0.00010966,2]
[361077243,1747234239077,-400.0,0.00010966,2]
[361077244,1747234239087,-400.0,0.00010966,2]
[361077245,1747234239096,-400.0,0.00010966,2]
[361077246,1747234239106,-558.91,0.00010966,2]
[361077247,1747234239115,-400.0,0.00010966,2]
[361077248,1747234239124,-571.45,0.00010966,2]
[361077249,1747234239134,-2019.53,0.00010966,2]
[361077250,1747234239143,-400.0,0.00010966,2]
[361077251,1747234239153,-400.0,0.00010966,2]
[361077252,1747234239162,-270.55027296,0.00010966,2]
[361077253,1747234239172,-400.0,0.00010966,2]
[361077254,1747234239182,-400.0,0.00010966,2]
[361077255,1747234239191,-958.96,0.00010966,2]
[361077256,1747234239201,-400.0,0.00010966,2]
[361077257,1747234239210,-615.25,0.00010966,2]
[361077258,1747234239220,-1747.24,0.00010966,2]
[361077259,1747234239229,-565.21,0.00010966,2]
[361077260,1747234239239,-669.92,0.00010966,2]
[361077261,1747234239248,-400.0,0.00010966,2]
[361077262,1747234239258,-400.0,0.00010966,2]
[361077263,1747234239267,-1143.69,0.00010966,2]
[361077264,1747234239276,-489.13,0.00010966,2]
[361077265,1747234239286,-400.0,0.00010966,2]
[361077266,1747234239295,-1259.34,0.00010966,2]
[361077267,1747234239305,-400.0,0.00010966,2]
[361077268,1747234239314,-400.0,0.00010966,2]
[361077269,1747234239329,-400.0,0.00010966,2]
[361077270,1747234239338,-400.0,0.00010966,2]
[361077271,1747234239348,-420.87,0.00010966,2]
[361077272,1747234239357,-841.18,0.00010966,2]
[361077273,1747234239367,-400.0,0.00010966,2]
[361077274,1747234239376,-400.0,0.00010966,2]
[361077275,1747234239385,-400.0,0.00010966,2]
[361077276,1747234239394,-852.34,0.00010966,2]
[361077277,1747234239403,-1260.15,0.00010966,2]
[361077278,1747234239413,-400.0,0.00010966,2]
[361077279,1747234239423,-2542.32,0.00010966,2]
[361077280,1747234239432,-898.08,0.00010966,2]
[361077281,1747234239441,-400.0,0.00010966,2]
[361077282,1747234239455,-400.0,0.00010966,2]
[361077283,1747234239469,-2180.44,0.00010966,2]
[361077284,1747234239478,-501.73,0.00010966,2]
[361077285,1747234239488,-2274.21,0.00010966,2]
[361077286,1747234239498,-400.0,0.00010966,2]
[361077287,1747234239507,-400.0,0.00010966,2]
[361077288,1747234239517,-400.0,0.00010966,2]
[361077289,1747234239526,-400.0,0.00010966,2]
[361077290,1747234239536,-6022.93,0.00010966,2]
[361077291,1747234239546,-437.83,0.00010966,2]
[361077292,1747234239555,-1318.91,0.00010966,2]
[361077293,1747234239565,-196.31174196,0.00010966,2]
[361077294,1747234239575,-400.0,0.00010966,2]
[361077295,1747234239584,-400.0,0.00010966,2]
[361077296,1747234239596,-536.0,0.00010966,2]
[361077297,1747234239605,-345.06608791,0.00010966,2]
[361077298,1747234239617,-417.08,0.00010966,2]
[361077299,1747234239626,-10046.45,0.00010966,2]
[361077300,1747234239636,-400.0,0.00010966,2]
[361077301,1747234239646,-400.0,0.00010966,2]
[361077302,1747234239656,-837.52,0.00010966,2]
[361077303,1747234239666,-469.83130621,0.00010966,2]
[361077304,1747234239675,-829.73,0.00010966,2]
[361077305,1747234239684,-400.0,0.00010966,2]
[361077306,1747234239694,-1522.93,0.00010966,2]
[361077307,1747234239704,-400.0,0.00010966,2]
[361077308,1747234239714,-876.6,0.00010966,2]
[361077309,1747234239723,-400.0,0.00010966,2]
[361077310,1747234239732,-400.0,0.00010966,2]
[361077311,1747234239742,-400.0,0.00010966,2]
[361077312,1747234239751,-400.0,0.00010966,2]
[361077313,1747234239761,-422.87,0.00010966,2]
[361077314,1747234239771,-400.0,0.00010966,2]
[361077315,1747234239781,-400.0,0.00010966,2]
[361077316,1747234239790,-400.0,0.00010966,2]
[361077317,1747234239800,-896.77,0.00010966,2]
[361077318,1747234239810,-989.23,0.00010966,2]
[361077319,1747234239820,-607.1,0.00010966,2]
[361077320,1747234239830,-892.78,0.00010966,2]
[361077322,1747234239839,-400.0,0.00010966,2]
[361077323,1747234239849,-400.0,0.00010966,2]
[361077325,1747234239859,-400.0,0.00010966,2]
[361077327,1747234239868,-400.0,0.00010966,2]
[361077329,1747234239878,-400.0,0.00010966,2]
[361077331,1747234239888,-1469.03,0.00010966,2]
[361077332,1747234239899,-3385.9,0.00010966,2]
[361077333,1747234239910,-400.0,0.00010966,2]
[361077335,1747234239920,-400.0,0.00010966,2]
[361077336,1747234239930,-1068.75,0.00010966,2]
[361077337,1747234239940,-400.0,0.00010966,2]
[361077338,1747234239949,-2126.9,0.00010966,2]
[361077339,1747234239959,-1726.99,0.00010966,2]
[361077340,1747234239968,-400.0,0.00010966,2]
[361077341,1747234239978,-1060.21,0.00010966,2]
[361077343,1747234239988,-400.0,0.00010967,2]
[361077346,1747234239997,-504.37,0.00010967,2]
[361077348,1747234240007,-400.0,0.00010967,2]
[361077350,1747234240017,-400.0,0.00010967,2]
[361077352,1747234240026,-400.0,0.00010967,2]
[361077354,1747234240036,-400.0,0.00010967,2]
[361077356,1747234240047,-512.92,0.00010967,2]
[361077358,1747234240057,-540.9,0.00010967,2]
[361077360,1747234240067,-400.0,0.00010967,2]
[361077362,1747234240077,-700.57,0.00010967,2]
[361077364,1747234240087,-400.0,0.00010967,2]
[361077367,1747234240096,-400.0,0.00010967,2]
[361077369,1747234240106,-400.0,0.00010967,2]
[361077371,1747234240116,-400.0,0.00010967,2]
[361077373,1747234240126,-400.0,0.00010967,2]
[361077375,1747234240136,-447.57,0.00010967,2]
[361077377,1747234240147,-978.8,0.00010967,2]
[361077379,1747234240157,-400.0,0.00010967,2]
[361077381,1747234240168,-400.0,0.00010967,2]
[361077382,1747234240178,-525.61,0.00010967,2]
[361077383,1747234240188,-400.0,0.00010967,2]
[361077384,1747234240197,-490.06,0.00010967,2]
[361077385,1747234240207,-623.82,0.00010967,2]
[361077386,1747234240217,-400.0,0.00010967,2]
[361077387,1747234240227,-400.0,0.00010967,2]
[361077388,1747234240237,-400.0,0.00010967,2]
[361077389,1747234240247,-400.0,0.00010967,2]
[361077390,1747234240257,-400.0,0.00010967,2]
[361077391,1747234240266,-400.0,0.00010967,2]
[361077394,1747234240276,-400.0,0.00010967,2]
[361077398,1747234240591,-426.56,0.00010967,2]
[361077400,1747234240600,-400.0,0.00010967,2]
[361077402,1747234240609,-400.0,0.00010967,2]
[361077404,1747234240619,-400.0,0.00010967,2]
[361077406,1747234240630,-400.0,0.00010967,2]
[361077407,1747234240639,-400.0,0.00010967,2]
[361077408,1747234240651,-400.0,0.00010967,2]
[361077409,1747234240660,-464.53,0.00010967,2]
[361077411,1747234240669,-400.0,0.00010967,2]
[361077413,1747234240678,-400.0,0.00010967,2]
[361077415,1747234240688,-400.0,0.00010967,2]
[361077416,1747234240698,-400.0,0.00010967,2]
[361077417,1747234240707,-569.06,0.00010967,2]
[361077418,1747234240717,-1081.75,0.00010967,2]
[361077419,1747234240726,-400.0,0.00010967,2]
[361077420,1747234240735,-400.0,0.00010967,2]
[361077421,1747234240746,-400.0,0.00010967,2]
[361077422,1747234240755,-400.0,0.00010967,2]
[361077423,1747234240765,-400.0,0.00010967,2]
[361077424,1747234240775,-400.0,0.00010967,2]
[361077425,1747234240784,-400.0,0.00010967,2]
[361077426,1747234240793,-544.82,0.00010967,2]
[361077427,1747234240803,-400.0,0.00010967,2]
[361077428,1747234240812,-400.0,0.00010967,2]
[361077429,1747234240822,-400.0,0.00010967,2]
[361077430,1747234240831,-400.0,0.00010967,2]
[361077431,1747234240840,-400.0,0.00010967,2]
[361077432,1747234240850,-429.31,0.00010967,2]
[361077433,1747234240859,-400.0,0.00010967,2]
[361077434,1747234240869,-400.0,0.00010967,2]
[361077435,1747234240878,-400.0,0.00010967,2]
[361077436,1747234240887,-400.0,0.00010967,2]
[361077437,1747234240897,-400.0,0.00010967,2]
[361077438,1747234240906,-455.47,0.00010967,2]
[361077439,1747234240915,-474.03,0.00010967,2]
[361077440,1747234240925,-539.89,0.00010967,2]
[361077441,1747234240935,-400.0,0.00010967,2]
[361077442,1747234240946,-400.0,0.00010967,2]
[361077443,1747234240956,-400.0,0.00010967,2]
[361077444,1747234240965,-400.0,0.00010967,2]
[361077445,1747234240975,-534.93,0.00010967,2]
[361077446,1747234240988,-400.0,0.00010967,2]
[361077447,1747234241000,-400.0,0.00010967,2]
[361077448,1747234241010,-400.0,0.00010967,2]
[361077449,1747234241020,-667.94,0.00010967,2]
[361077450,1747234241029,-400.0,0.00010967,2]
[361077451,1747234241039,-400.0,0.00010967,2]
[361077452,1747234241050,-400.0,0.00010967,2]
[361077453,1747234241059,-400.0,0.00010967,2]
[361077454,1747234241069,-400.0,0.00010967,2]
[361077455,1747234241078,-711.45,0.00010967,2]
[361077456,1747234241087,-400.0,0.00010967,2]
[361077457,1747234241097,-457.04,0.00010967,2]
[361077458,1747234241108,-598.73,0.00010967,2]
[361077459,1747234241117,-400.0,0.00010967,2]
[361077460,1747234241127,-564.88,0.00010967,2]
[361077461,1747234241136,-435.56,0.00010967,2]
[361077462,1747234241146,-524.75,0.00010967,2]
[361077463,1747234241155,-461.18,0.00010967,2]
[361077464,1747234241164,-400.0,0.00010967,2]
[361077465,1747234241174,-400.0,0.00010967,2]
[361077466,1747234241183,-400.0,0.00010967,2]
[361077467,1747234241192,-1092.37,0.00010967,2]
[361077468,1747234241202,-5266.99,0.00010967,2]
[361077469,1747234241211,-612.94,0.00010967,2]
[361077470,1747234241220,-400.0,0.00010967,2]
[361077471,1747234241230,-400.0,0.00010967,2]
[361077472,1747234241239,-727.13,0.00010967,2]
[361077473,1747234241248,-2391.97,0.00010967,2]
[361077474,1747234241258,-400.0,0.00010967,2]
[361077475,1747234241267,-849.03,0.00010967,2]
[361077476,1747234241277,-1512.71,0.00010967,2]
[361077477,1747234241286,-400.0,0.00010967,2]
[361077478,1747234241295,-742.53,0.00010967,2]
[361077479,1747234241305,-1562.74,0.00010967,2]
[361077480,1747234241314,-1162.28,0.00010967,2]
[361077481,1747234241324,-698.43,0.00010967,2]
[361077482,1747234241334,-859.04,0.00010967,2]
[361077483,1747234241344,-572.21,0.00010967,2]
[361077484,1747234241354,-8466.33,0.00010967,2]
[361077485,1747234241363,-400.0,0.00010967,2]
[361077486,1747234241372,-400.0,0.00010967,2]
[361077487,1747234241382,-2230.64,0.00010967,2]
[361077488,1747234241393,-1483.05,0.00010967,2]
[361077489,1747234241403,-400.0,0.00010967,2]
[361077490,1747234241414,-855.66,0.00010967,2]
[361077491,1747234241424,-1983.17,0.00010967,2]
[361077492,1747234241433,-500.27,0.00010967,2]
[361077493,1747234241445,-400.0,0.00010967,2]
[361077494,1747234241456,-400.0,0.00010967,2]
[361077495,1747234241466,-1125.01,0.00010967,2]
[361077496,1747234241475,-530.07,0.00010967,2]
[361077497,1747234241484,-400.0,0.00010967,2]
[361077498,1747234241494,-7347.98,0.00010967,2]
[361077499,1747234241502,-13036.72,0.00010967,2]
[361077500,1747234241512,-400.0,0.00010967,2]
[361077501,1747234241522,-1210.18,0.00010967,2]
[361077502,1747234241532,-1098.63,0.00010967,2]
[361077503,1747234241542,-1334.58,0.00010967,2]
[361077504,1747234241552,-400.0,0.00010967,2]
[361077505,1747234241561,-4346.4,0.00010967,2]
[361077506,1747234241572,-446.18,0.00010967,2]
[361077507,1747234241582,-2647.17,0.00010967,2]
[361077508,1747234241591,-400.0,0.00010967,2]
[361077509,1747234241600,-400.0,0.00010967,2]
[361077510,1747234241610,-2930.44,0.00010967,2]
[361077511,1747234241619,-400.0,0.00010967,2]
[361077512,1747234241629,-400.0,0.00010967,2]
[361077513,1747234241639,-999.48,0.00010967,2]
[361077514,1747234241650,-400.0,0.00010967,2]
[361077515,1747234241659,-420.15511668,0.00010967,2]
[361077516,1747234241668,-1259.34,0.00010967,2]
[361077517,1747234241678,-400.0,0.00010967,2]
[361077518,1747234241687,-400.0,0.00010967,2]
[361077519,1747234241696,-718.09,0.00010967,2]
[361077520,1747234241706,-526.47,0.00010967,2]
[361077521,1747234241716,-458.62,0.00010967,2]
[361077522,1747234241726,-3175.61,0.00010967,2]
[361077523,1747234241735,-400.0,0.00010967,2]
[361077524,1747234241745,-400.0,0.00010967,2]
[361077525,1747234241755,-5148.76,0.00010967,2]
[361077526,1747234241764,-663.94,0.00010967,2]
[361077527,1747234241774,-400.0,0.00010967,2]
[361077528,1747234241783,-400.0,0.00010967,2]
[361077529,1747234241793,-596.71,0.00010967,2]
[361077530,1747234241802,-781.03,0.00010967,2]
[361077531,1747234241811,-400.0,0.00010967,2]
[361077532,1747234241821,-1749.96,0.00010967,2]
[361077533,1747234241831,-2148.25,0.00010967,2]
[361077534,1747234241840,-400.0,0.00010967,2]
[361077535,1747234241850,-558.95,0.00010967,2]
[361077536,1747234241859,-400.0,0.00010967,2]
[361077537,1747234241869,-4527.42,0.00010967,2]
[361077538,1747234241877,-400.0,0.00010967,2]
[361077539,1747234241886,-612.62,0.00010967,2]
[361077540,1747234241894,-400.0,0.00010967,2]
[361077541,1747234241904,-7992.43,0.00010967,2]
[361077542,1747234241914,-400.0,0.00010967,2]
[361077543,1747234241923,-400.0,0.00010967,2]
[361077544,1747234241933,-618.19,0.00010967,2]
[361077545,1747234241942,-998.53,0.00010967,2]
[361077546,1747234241951,-649.8,0.00010967,2]
[361077547,1747234241960,-400.0,0.00010967,2]
[361077548,1747234241970,-3706.75,0.00010967,2]
[361077549,1747234241979,-400.0,0.00010967,2]
[361077550,1747234241988,-1106.79,0.00010967,2]
[361077551,1747234241997,-512.26,0.00010967,2]
[361077552,1747234242006,-5610.69,0.00010967,2]
[361077553,1747234242015,-742.03,0.00010967,2]
[361077554,1747234242024,-400.0,0.00010967,2]
[361077555,1747234242033,-400.0,0.00010967,2]
[361077556,1747234242044,-1480.09,0.00010967,2]
[361077557,1747234242053,-400.0,0.00010967,2]
[361077558,1747234242063,-1713.22,0.00010967,2]
[361077559,1747234242072,-400.0,0.00010967,2]
[361077560,1747234242081,-1000.0,0.00010967,2]
[361077561,1747234242091,-431.74,0.00010967,2]
[361077562,1747234242100,-400.0,0.00010967,2]
[361077563,1747234242108,-400.0,0.00010967,2]
[361077564,1747234242117,-400.0,0.00010967,2]
[361077565,1747234242126,-425.75,0.00010968,2]
[361077566,1747234242135,-402.57,0.00010968,2]
[361077567,1747234242145,-400.0,0.00010968,2]
[361077568,1747234242155,-400.0,0.00010968,2]
[361077569,1747234242164,-400.0,0.00010968,2]
[361077570,1747234242174,-400.0,0.00010968,2]
[361077571,1747234242183,-400.0,0.00010968,2]
[361077572,1747234242192,-400.0,0.00010968,2]
[361077573,1747234242201,-400.0,0.00010968,2]
[361077574,1747234242211,-400.0,0.00010968,2]
[361077575,1747234242220,-248.46234506,0.00010968,2]
[361077576,1747234242229,-404.42680951,0.00010968,2]
[361077577,1747234242238,-407.22777778,0.00010968,2]
[361077578,1747234242248,-539.47,0.00010968,2]
[361077579,1747234242257,-400.0,0.00010968,2]
[361077580,1747234242267,-400.0,0.00010968,2]
[361077581,1747234242276,-432.37,0.00010968,2]
[361077582,1747234242285,-400.0,0.00010968,2]
[361077583,1747234242295,-283.6397174,0.00010968,2]
[361077584,1747234242304,-400.0,0.00010968,2]
[361077585,1747234242313,-400.0,0.00010968,2]
[361077586,1747234242322,-400.0,0.00010968,2]
[361077587,1747234242332,-400.0,0.00010968,2]
[361077588,1747234242341,-400.0,0.00010968,2]
[361077589,1747234242351,-400.0,0.00010968,2]
[361077590,1747234242364,-400.0,0.00010968,2]
[361077591,1747234242373,-400.0,0.00010968,2]
[361077592,1747234242383,-400.0,0.00010968,2]
[361077593,1747234242392,-400.0,0.00010968,2]
[361077594,1747234242402,-400.0,0.00010968,2]
[361077595,1747234242412,-400.0,0.00010968,2]
[361077596,1747234242421,-400.0,0.00010968,2]
[361077597,1747234242430,-400.0,0.00010968,2]
[361077598,1747234242439,-400.0,0.00010968,2]
[361077599,1747234242453,-400.0,0.00010968,2]
[361077600,1747234242462,-400.0,0.00010968,2]
[361077601,1747234242472,-400.0,0.00010968,2]
[361077602,1747234242481,-635.17,0.00010968,2]
[361077603,1747234242490,-400.0,0.00010968,2]
[361077604,1747234242500,-400.0,0.00010968,2]
[361077605,1747234242509,-400.0,0.00010968,2]
[361077606,1747234242519,-400.0,0.00010968,2]
[361077607,1747234242529,-400.0,0.00010968,2]
[361077608,1747234242538,-731.17,0.00010968,2]
[361077609,1747234242547,-400.0,0.00010968,2]
[361077610,1747234242557,-400.0,0.00010968,2]
[361077611,1747234242566,-691.66,0.00010968,2]
[361077612,1747234242575,-400.0,0.00010968,2]
[361077613,1747234242584,-400.0,0.00010968,2]
[361077614,1747234242593,-400.0,0.00010968,2]
[361077615,1747234242603,-400.0,0.00010968,2]
[361077616,1747234242612,-534.77,0.00010968,2]
[361077617,1747234242622,-506.6,0.00010968,2]
[361077618,1747234242631,-400.0,0.00010968,2]
[361077619,1747234242640,-500.0,0.00010968,2]
[361077620,1747234242651,-1120.87,0.00010968,2]
[361077621,1747234242660,-400.0,0.00010968,2]
[361077622,1747234242669,-400.0,0.00010968,2]
[361077623,1747234242679,-400.0,0.00010968,2]
[361077624,1747234242688,-405.38,0.00010968,2]
[361077625,1747234242697,-400.0,0.00010968,2]
[361077626,1747234242707,-441.88,0.00010968,2]
[361077627,1747234242717,-400.0,0.00010968,2]
[361077628,1747234242727,-400.0,0.00010968,2]
[361077629,1747234242738,-400.0,0.00010968,2]
[361077630,1747234242747,-400.0,0.00010968,2]
[361077631,1747234242757,-459.55,0.00010968,2]
[361077632,1747234242766,-400.0,0.00010968,2]
[361077633,1747234242775,-400.0,0.00010968,2]
[361077634,1747234242785,-400.0,0.00010968,2]
[361077635,1747234242794,-494.71,0.00010968,2]
[361077636,1747234242804,-400.0,0.00010968,2]
[361077637,1747234242813,-400.0,0.00010968,2]
[361077638,1747234242822,-400.0,0.00010968,2]
[361077639,1747234242832,-767.49,0.00010968,2]
[361077640,1747234242841,-400.0,0.00010968,2]
[361077642,1747234242851,-400.0,0.00010968,2]
[361077643,1747234242860,-780.14911951,0.00010968,2]
[361077650,1747234243290,-302.85088049,0.00010968,2]
[361077651,1747234243299,-61.36389163,0.00010968,2]
[361077655,1747234243725,-425.85,0.00010966,2]
[361077656,1747234243734,-400.0,0.00010966,2]
[361077657,1747234243744,-338.63610837,0.00010968,2]
[361077658,1747234243753,-400.0,0.00010968,2]
[361077659,1747234243762,-400.0,0.00010968,2]
[361077660,1747234243771,-353.66789788,0.00010968,2]
[361077661,1747234243780,-400.0,0.00010968,2]
[361077662,1747234243789,-425.2,0.00010968,2]
[361077663,1747234243798,-590.91,0.00010968,2]
[361077664,1747234243807,-1166.99,0.00010968,2]
[361077665,1747234243817,-400.0,0.00010968,2]
[361077666,1747234243826,-471.40918816,0.00010968,2]
[361077667,1747234243836,-400.0,0.00010968,2]
[361077668,1747234243845,-400.0,0.00010968,2]
[361077669,1747234243854,-400.0,0.00010968,2]
[361077670,1747234243863,-570.18,0.00010968,2]
[361077671,1747234243873,-400.0,0.00010968,2]
[361077672,1747234243883,-400.0,0.00010968,2]
[361077673,1747234244127,-400.0,0.00010968,2]
[361077674,1747234244138,-400.0,0.00010968,2]
[361077675,1747234244148,-400.0,0.00010968,2]
[361077676,1747234244159,-400.0,0.00010968,2]
[361077677,1747234244169,-400.0,0.00010968,2]
[361077678,1747234244178,-1123.96,0.00010968,2]
[361077679,1747234244187,-631.94,0.00010968,2]
[361077680,1747234244196,-400.0,0.00010968,2]
[361077681,1747234244206,-400.0,0.00010968,2]
[361077682,1747234244217,-263.73873553,0.00010968,2]
[361077683,1747234244226,-400.0,0.00010968,2]
[361077684,1747234244236,-400.0,0.00010968,2]